[Event "Live Chess"]
[Site "Chess.com"]
[Date "2023.05.20"]
[Round "-"]
[White "BJAW87"]
[Black "Long1968"]
[Result "1-0"]
[WhiteElo "1428"]
[BlackElo "1179"]
[TimeControl "300"]
[EndTime "15:35:32 PDT"]
[Termination "BJAW87 won on time"]

1. e4 {[%clk 0:04:59.1]} 1... e6 {[%clk 0:04:56.1]} 2. d4 {[%clk 0:04:58.2]}
2... d5 {[%clk 0:04:53.9]} 3. exd5 {[%clk 0:04:57.7]} 3... exd5 {[%clk
0:04:52.1]} 4. Nf3 {[%clk 0:04:56.9]} 4... Bg4 {[%clk 0:04:48.6]} 5. h3 {[%clk
0:04:53.1]} 5... Bh5 {[%clk 0:04:44.8]} 6. Nbd2 {[%clk 0:04:51.5]} 6... Qe7+
{[%clk 0:04:38.6]} 7. Be2 {[%clk 0:04:48.7]} 7... Nf6 {[%clk 0:04:34.4]} 8. O-O
{[%clk 0:04:46.7]} 8... Nbd7 {[%clk 0:04:19.9]} 9. c3 {[%clk 0:04:44.5]} 9...
O-O-O {[%clk 0:04:16.9]} 10. Re1 {[%clk 0:04:41.2]} 10... Qd6 {[%clk 0:04:02.2]}
11. Ng5 {[%clk 0:04:29.3]} 11... Bg6 {[%clk 0:03:50.7]} 12. a4 {[%clk
0:04:10.4]} 12... h6 {[%clk 0:03:47.1]} 13. Ngf3 {[%clk 0:04:07.1]} 13... Ne4
{[%clk 0:03:35.7]} 14. Nxe4 {[%clk 0:03:59.2]} 14... Bxe4 {[%clk 0:03:31.9]} 15.
b4 {[%clk 0:03:55.4]} 15... Nf6 {[%clk 0:03:25.7]} 16. a5 {[%clk 0:03:49.8]}
16... Re8 {[%clk 0:02:49.8]} 17. Ne5 {[%clk 0:03:45.4]} 17... Re7 {[%clk
0:02:29.9]} 18. b5 {[%clk 0:03:40.9]} 18... Nd7 {[%clk 0:02:08.2]} 19. Bf4
{[%clk 0:03:24.8]} 19... Nxe5 {[%clk 0:01:55.9]} 20. Bxe5 {[%clk 0:03:24.7]}
20... Qg6 {[%clk 0:01:50.9]} 21. f3 {[%clk 0:03:12.3]} 21... Rxe5 {[%clk
0:01:30.3]} 22. dxe5 {[%clk 0:03:11.3]} 22... Bc5+ {[%clk 0:01:27.2]} 23. Kf1
{[%clk 0:03:01.8]} 23... Bf5 {[%clk 0:01:21.1]} 24. g4 {[%clk 0:02:44.2]} 24...
Bxg4 {[%clk 0:01:12]} 25. hxg4 {[%clk 0:02:38]} 25... h5 {[%clk 0:01:05.9]} 26.
Qxd5 {[%clk 0:02:31.8]} 26... hxg4 {[%clk 0:00:41]} 27. Qxc5 {[%clk 0:02:26]}
27... Rh1+ {[%clk 0:00:28.3]} 28. Kf2 {[%clk 0:02:16.8]} 28... g3+ {[%clk
0:00:20.2]} 29. Ke3 {[%clk 0:02:14]} 29... Qg5+ {[%clk 0:00:17.9]} 30. Kd3
{[%clk 0:02:12.2]} 30... Qf5+ {[%clk 0:00:14.9]} 31. Kd2 {[%clk 0:02:08.2]}
31... Rxe1 {[%clk 0:00:10.8]} 32. Rxe1 {[%clk 0:02:04.3]} 32... Qf4+ {[%clk
0:00:08.2]} 33. Qe3 {[%clk 0:02:02.2]} 33... Qa4 {[%clk 0:00:04]} 34. a6 {[%clk
0:01:53.8]} 1-0

[Event "Live Chess"]
[Site "Chess.com"]
[Date "2023.05.20"]
[Round "-"]
[White "wadsy27"]
[Black "chessfiction"]
[Result "1-0"]
[WhiteElo "2564"]
[BlackElo "2338"]
[TimeControl "300"]
[EndTime "15:35:34 PDT"]
[Termination "wadsy27 won by checkmate"]

1. c4 {[%clk 0:04:57]} 1... d5 {[%clk 0:04:58.2]} 2. cxd5 {[%clk 0:04:55.3]}
2... c6 {[%clk 0:04:58.1]} 3. dxc6 {[%clk 0:04:53.8]} 3... e5 {[%clk 0:04:57.5]}
4. Nc3 {[%clk 0:04:49.9]} 4... Bc5 {[%clk 0:04:53.6]} 5. Nf3 {[%clk 0:04:45.8]}
5... Nf6 {[%clk 0:04:50.6]} 6. d3 {[%clk 0:04:42.9]} 6... O-O {[%clk 0:04:46.9]}
7. e3 {[%clk 0:04:40.7]} 7... Nxc6 {[%clk 0:04:43.8]} 8. Be2 {[%clk 0:04:39.4]}
8... Bg4 {[%clk 0:04:42.7]} 9. O-O {[%clk 0:04:37.2]} 9... Qd7 {[%clk
0:04:42.2]} 10. Ne4 {[%clk 0:04:33.1]} 10... Bb6 {[%clk 0:04:36.3]} 11. Nxf6+
{[%clk 0:04:25.8]} 11... gxf6 {[%clk 0:04:36.2]} 12. h3 {[%clk 0:04:24.4]} 12...
Bxh3 {[%clk 0:04:33.6]} 13. gxh3 {[%clk 0:04:21.7]} 13... Qxh3 {[%clk
0:04:31.9]} 14. Nh2 {[%clk 0:04:15.5]} 14... Kh8 {[%clk 0:04:20.9]} 15. Bg4
{[%clk 0:04:13.8]} 15... Qh4 {[%clk 0:04:18.3]} 16. Kh1 {[%clk 0:04:00.1]} 16...
Rg8 {[%clk 0:04:16.2]} 17. Qf3 {[%clk 0:03:55.1]} 17... e4 {[%clk 0:04:10.9]}
18. Qh3 {[%clk 0:03:54]} 18... Qxh3 {[%clk 0:03:59.3]} 19. Bxh3 {[%clk
0:03:52.4]} 19... exd3 {[%clk 0:03:59.2]} 20. Bd2 {[%clk 0:03:46.5]} 20... Ne5
{[%clk 0:03:55.6]} 21. Bc3 {[%clk 0:03:43.4]} 21... Rg6 {[%clk 0:03:38]} 22. Bf5
{[%clk 0:02:21.8]} 22... Rh6 {[%clk 0:03:33.3]} 23. Bxe5 {[%clk 0:01:59.4]}
23... fxe5 {[%clk 0:03:30.9]} 24. Bxd3 {[%clk 0:01:55.1]} 24... e4 {[%clk
0:03:20]} 25. Bxe4 {[%clk 0:01:52.9]} 25... Bc7 {[%clk 0:03:19.5]} 26. f4 {[%clk
0:01:49.3]} 26... Re8 {[%clk 0:03:19]} 27. Rac1 {[%clk 0:01:36.9]} 27... Bb6
{[%clk 0:03:05.9]} 28. Bxb7 {[%clk 0:01:30.7]} 28... Rxe3 {[%clk 0:02:58.2]} 29.
Rc8+ {[%clk 0:01:25.6]} 29... Kg7 {[%clk 0:02:56.3]} 30. Rg1+ {[%clk 0:01:22.5]}
30... Kf6 {[%clk 0:02:51.7]} 31. Rc6+ {[%clk 0:01:13.7]} 31... Re6 {[%clk
0:02:50.3]} 32. Rxe6+ {[%clk 0:01:11.7]} 32... fxe6 {[%clk 0:02:46.8]} 33. Rf1
{[%clk 0:00:58.5]} 33... Kf5 {[%clk 0:02:39.4]} 34. Ba6 {[%clk 0:00:54.3]} 34...
Ke4 {[%clk 0:02:36.3]} 35. Bb7+ {[%clk 0:00:46.6]} 35... Ke3 {[%clk 0:02:33.6]}
36. Rf3+ {[%clk 0:00:45.4]} 36... Kd2 {[%clk 0:02:30.3]} 37. Kg2 {[%clk
0:00:43.6]} 37... Kc2 {[%clk 0:02:27]} 38. b3 {[%clk 0:00:41.3]} 38... Kb2
{[%clk 0:02:25.6]} 39. a4 {[%clk 0:00:40.3]} 39... Rg6+ {[%clk 0:02:22]} 40. Rg3
{[%clk 0:00:27.6]} 40... Rxg3+ {[%clk 0:02:20.6]} 41. Kxg3 {[%clk 0:00:26.7]}
41... Kxb3 {[%clk 0:02:20.5]} 42. Bc6 {[%clk 0:00:26]} 42... Bc7 {[%clk
0:02:13.2]} 43. Nf3 {[%clk 0:00:24.5]} 43... Kb4 {[%clk 0:02:10.2]} 44. Bd7
{[%clk 0:00:22.7]} 44... h5 {[%clk 0:02:02.5]} 45. Ng5 {[%clk 0:00:18.8]} 45...
h4+ {[%clk 0:01:59.1]} 46. Kg4 {[%clk 0:00:18.2]} 46... h3 {[%clk 0:01:51.7]}
47. Nxh3 {[%clk 0:00:17.6]} 47... a5 {[%clk 0:01:50.4]} 48. Ng5 {[%clk
0:00:17.2]} 48... Bd6 {[%clk 0:01:45.7]} 49. Nxe6 {[%clk 0:00:16.4]} 49... Be7
{[%clk 0:01:44.9]} 50. f5 {[%clk 0:00:15.9]} 50... Bf6 {[%clk 0:01:44.1]} 51.
Kh5 {[%clk 0:00:15.6]} 51... Be7 {[%clk 0:01:41.4]} 52. Kg6 {[%clk 0:00:15.5]}
52... Bh4 {[%clk 0:01:39.9]} 53. f6 {[%clk 0:00:15]} 53... Bxf6 {[%clk
0:01:38.7]} 54. Kxf6 {[%clk 0:00:14.9]} 54... Kc4 {[%clk 0:01:37.5]} 55. Bb5+
{[%clk 0:00:14.8]} 55... Kd5 {[%clk 0:01:36.7]} 56. Nd8 {[%clk 0:00:14.7]} 56...
Kd6 {[%clk 0:01:36.5]} 57. Nc6 {[%clk 0:00:14.3]} 57... Kc7 {[%clk 0:01:36.4]}
58. Nxa5 {[%clk 0:00:13.7]} 58... Kb6 {[%clk 0:01:36.3]} 59. Nc4+ {[%clk
0:00:13.3]} 59... Kc5 {[%clk 0:01:36.2]} 60. Ke6 {[%clk 0:00:12.1]} 60... Kb4
{[%clk 0:01:35.4]} 61. Kd6 {[%clk 0:00:11.5]} 61... Kc3 {[%clk 0:01:34]} 62. a5
{[%clk 0:00:11.2]} 62... Kd4 {[%clk 0:01:33.9]} 63. a6 {[%clk 0:00:10.9]} 63...
Kc3 {[%clk 0:01:33.7]} 64. a7 {[%clk 0:00:10.7]} 64... Kb4 {[%clk 0:01:33.6]}
65. a8=Q {[%clk 0:00:09.7]} 65... Kc3 {[%clk 0:01:33.5]} 66. Qa3+ {[%clk
0:00:08.8]} 66... Kd4 {[%clk 0:01:32.8]} 67. Qb2+ {[%clk 0:00:07.9]} 67... Ke4
{[%clk 0:01:32.7]} 68. Qe2+ {[%clk 0:00:07.1]} 68... Kf4 {[%clk 0:01:32.6]} 69.
Qe3+ {[%clk 0:00:05.9]} 69... Kg4 {[%clk 0:01:31.6]} 70. Ke5 {[%clk 0:00:05.2]}
70... Kh4 {[%clk 0:01:30.7]} 71. Qg1 {[%clk 0:00:04.5]} 71... Kh3 {[%clk
0:01:30.1]} 72. Kf4 {[%clk 0:00:04]} 72... Kh4 {[%clk 0:01:30]} 73. Qg4# {[%clk
0:00:03.2]} 1-0

[Event "Live Chess"]
[Site "Chess.com"]
[Date "2023.05.20"]
[Round "-"]
[White "McSlash1"]
[Black "jk0110"]
[Result "1-0"]
[WhiteElo "1998"]
[BlackElo "1116"]
[TimeControl "300"]
[EndTime "15:35:34 PDT"]
[Termination "McSlash1 won by checkmate"]

1. e4 {[%clk 0:04:59.2]} 1... e5 {[%clk 0:04:59.2]} 2. Nf3 {[%clk 0:04:56.9]}
2... Nc6 {[%clk 0:04:58.5]} 3. Bb5 {[%clk 0:04:56.6]} 3... a6 {[%clk 0:04:56.5]}
4. Ba4 {[%clk 0:04:56.1]} 4... b5 {[%clk 0:04:55.7]} 5. Bb3 {[%clk 0:04:55.6]}
5... Nf6 {[%clk 0:04:53.8]} 6. O-O {[%clk 0:04:55.1]} 6... Bc5 {[%clk
0:04:45.4]} 7. Re1 {[%clk 0:04:54.5]} 7... O-O {[%clk 0:04:33.3]} 8. c3 {[%clk
0:04:51.6]} 8... Ng4 {[%clk 0:04:13.8]} 9. d4 {[%clk 0:04:48.7]} 9... exd4
{[%clk 0:04:09.3]} 10. cxd4 {[%clk 0:04:48.6]} 10... Bb4 {[%clk 0:03:59.7]} 11.
Nc3 {[%clk 0:04:46.1]} 11... Na5 {[%clk 0:03:43.1]} 12. Bc2 {[%clk 0:04:01.6]}
12... c5 {[%clk 0:03:10.3]} 13. dxc5 {[%clk 0:03:57.7]} 13... Bxc5 {[%clk
0:03:07.9]} 14. Re2 {[%clk 0:03:43.8]} 14... Qb6 {[%clk 0:02:57.2]} 15. Qd3
{[%clk 0:03:34.9]} 15... Bxf2+ {[%clk 0:02:24]} 16. Kh1 {[%clk 0:03:23.1]} 16...
Bg3 {[%clk 0:01:58.1]} 17. e5 {[%clk 0:03:19.5]} 17... Nf2+ {[%clk 0:01:43.4]}
18. Rxf2 {[%clk 0:03:17]} 18... Bxf2 {[%clk 0:01:36.9]} 19. Qxh7# {[%clk
0:03:16.3]} 1-0

[Event "Live Chess"]
[Site "Chess.com"]
[Date "2023.05.20"]
[Round "-"]
[White "weibs440"]
[Black "SupremeTactician"]
[Result "0-1"]
[WhiteElo "941"]
[BlackElo "2356"]
[TimeControl "300"]
[EndTime "15:35:36 PDT"]
[Termination "SupremeTactician won by resignation"]

1. e4 {[%clk 0:04:58.9]} 1... e5 {[%clk 0:04:58.8]} 2. Nc3 {[%clk 0:04:57.4]}
2... Nc6 {[%clk 0:04:56.3]} 3. Bc4 {[%clk 0:04:54.7]} 3... Bc5 {[%clk
0:04:45.8]} 4. Qg4 {[%clk 0:04:52.6]} 4... Qf6 {[%clk 0:04:45.4]} 5. Nd5 {[%clk
0:04:50.1]} 5... Qxf2+ {[%clk 0:04:44.1]} 6. Kd1 {[%clk 0:04:48.7]} 6... h5
{[%clk 0:04:43.1]} 7. Qxg7 {[%clk 0:04:43.6]} 7... Na5 {[%clk 0:04:29.5]} 8. Nh3
{[%clk 0:04:29.5]} 8... Qh4 {[%clk 0:04:23.8]} 9. Nxc7+ {[%clk 0:04:20.1]} 9...
Kd8 {[%clk 0:04:22.2]} 10. Bxf7 {[%clk 0:03:53.3]} 10... Kxc7 {[%clk 0:04:00.9]}
11. Qxh8 {[%clk 0:03:49.4]} 11... Qg4+ {[%clk 0:03:50.2]} 12. Ke1 {[%clk
0:03:38.8]} 12... Qxe4+ {[%clk 0:03:48]} 13. Kd1 {[%clk 0:03:32.5]} 13... d6
{[%clk 0:03:44.7]} 14. Re1 {[%clk 0:03:05.9]} 14... Bg4+ {[%clk 0:03:41.5]} 0-1

[Event "Live Chess"]
[Site "Chess.com"]
[Date "2023.05.20"]
[Round "-"]
[White "Doge_Dandolo"]
[Black "TheSmoulderingMaster"]
[Result "1-0"]
[WhiteElo "2033"]
[BlackElo "1687"]
[TimeControl "300"]
[EndTime "15:35:37 PDT"]
[Termination "Doge_Dandolo won by resignation"]

1. Nf3 {[%clk 0:04:57.9]} 1... d5 {[%clk 0:04:58.6]} 2. c4 {[%clk 0:04:55.8]}
2... d4 {[%clk 0:04:56.6]} 3. b4 {[%clk 0:04:53.3]} 3... c5 {[%clk 0:04:48.8]}
4. g3 {[%clk 0:04:50.5]} 4... Nc6 {[%clk 0:04:44.1]} 5. bxc5 {[%clk 0:04:44.4]}
5... e5 {[%clk 0:04:41.3]} 6. d3 {[%clk 0:04:36]} 6... Bxc5 {[%clk 0:04:39.4]}
7. Bg2 {[%clk 0:04:35.3]} 7... Nf6 {[%clk 0:04:38.1]} 8. O-O {[%clk 0:04:34.1]}
8... O-O {[%clk 0:04:37]} 9. Bg5 {[%clk 0:04:33.1]} 9... Bg4 {[%clk 0:04:34.5]}
10. Nbd2 {[%clk 0:04:29.6]} 10... Re8 {[%clk 0:04:32.8]} 11. Ne4 {[%clk
0:04:27.4]} 11... Be7 {[%clk 0:04:29.9]} 12. Nxf6+ {[%clk 0:04:24.5]} 12... Bxf6
{[%clk 0:04:29]} 13. Bxf6 {[%clk 0:04:22.6]} 13... Qxf6 {[%clk 0:04:27.3]} 14.
Nd2 {[%clk 0:04:21]} 14... Nb4 {[%clk 0:04:18.5]} 15. Rb1 {[%clk 0:04:16.5]}
15... Nxd3 {[%clk 0:04:17.1]} 16. Qa4 {[%clk 0:04:10.3]} 16... Nc5 {[%clk
0:04:15]} 17. Qb5 {[%clk 0:04:06.8]} 17... b6 {[%clk 0:04:13.6]} 18. Bxa8 {[%clk
0:04:04.6]} 18... Rxa8 {[%clk 0:04:11.3]} 19. Qc6 {[%clk 0:04:00.3]} 19... Rc8
{[%clk 0:04:07.6]} 20. Qg2 {[%clk 0:03:50.6]} 20... Bxe2 {[%clk 0:04:05]} 21.
Rfe1 {[%clk 0:03:49.5]} 21... d3 {[%clk 0:03:59.2]} 22. Ne4 {[%clk 0:03:30.3]}
22... Nxe4 {[%clk 0:03:56.3]} 23. Qxe4 {[%clk 0:03:27.9]} 23... Rd8 {[%clk
0:03:51.7]} 24. Rxe2 {[%clk 0:03:23.8]} 24... dxe2 {[%clk 0:03:49.7]} 25. Qxe2
{[%clk 0:03:23]} 25... Qf5 {[%clk 0:03:46.8]} 26. Rc1 {[%clk 0:03:20.7]} 26...
e4 {[%clk 0:03:44.7]} 27. c5 {[%clk 0:03:19.5]} 27... bxc5 {[%clk 0:03:42.8]}
28. Qb5 {[%clk 0:03:16.7]} 28... Qf3 {[%clk 0:03:33.3]} 29. Qa5 {[%clk
0:03:07.1]} 29... Rd5 {[%clk 0:03:18.1]} 30. Qxa7 {[%clk 0:02:58.2]} 30... h6
{[%clk 0:03:14.1]} 31. Qa8+ {[%clk 0:02:57.1]} 31... Kh7 {[%clk 0:03:11.8]} 32.
Qxd5 {[%clk 0:02:56.6]} 32... c4 {[%clk 0:03:05.7]} 33. Qxc4 {[%clk 0:02:54.9]}
33... e3 {[%clk 0:03:04.5]} 34. Qd3+ {[%clk 0:02:52.2]} 34... f5 {[%clk
0:03:02.4]} 35. Qxe3 {[%clk 0:02:51]} 1-0

[Event "Live Chess"]
[Site "Chess.com"]
[Date "2023.05.20"]
[Round "-"]
[White "1600x"]
[Black "WelshTiger"]
[Result "1-0"]
[WhiteElo "1782"]
[BlackElo "2361"]
[TimeControl "300"]
[EndTime "15:35:44 PDT"]
[Termination "1600x won by checkmate"]

1. e4 {[%clk 0:04:55.3]} 1... c5 {[%clk 0:04:55]} 2. d4 {[%clk 0:04:52.6]} 2...
cxd4 {[%clk 0:04:53.9]} 3. Qxd4 {[%clk 0:04:46.7]} 3... Nc6 {[%clk 0:04:50.3]}
4. Qd2 {[%clk 0:04:36.2]} 4... d6 {[%clk 0:04:48]} 5. b3 {[%clk 0:04:21.8]} 5...
Nf6 {[%clk 0:04:47.1]} 6. Nc3 {[%clk 0:04:18]} 6... g6 {[%clk 0:04:43.8]} 7. Nf3
{[%clk 0:04:12.7]} 7... Bg7 {[%clk 0:04:42.9]} 8. Rb1 {[%clk 0:04:10.1]} 8...
O-O {[%clk 0:04:39.9]} 9. b4 {[%clk 0:04:08.1]} 9... Bg4 {[%clk 0:04:35.5]} 10.
b5 {[%clk 0:04:05.6]} 10... Na5 {[%clk 0:04:22.6]} 11. Nd4 {[%clk 0:03:59.1]}
11... Rc8 {[%clk 0:04:17.4]} 12. f3 {[%clk 0:03:56.3]} 12... Bd7 {[%clk
0:04:08.2]} 13. Bb2 {[%clk 0:03:46.1]} 13... Nc4 {[%clk 0:04:07.1]} 14. Bxc4
{[%clk 0:03:24.8]} 14... Rxc4 {[%clk 0:04:07]} 15. Nd1 {[%clk 0:03:13.5]} 15...
Qb6 {[%clk 0:03:54.4]} 16. Ne3 {[%clk 0:03:10.3]} 16... Rc7 {[%clk 0:03:27.3]}
17. a4 {[%clk 0:03:03]} 17... Rfc8 {[%clk 0:03:19.3]} 18. a5 {[%clk 0:03:00.2]}
18... Qc5 {[%clk 0:03:18.6]} 19. O-O {[%clk 0:02:53.9]} 19... Be8 {[%clk
0:02:39.2]} 20. b6 {[%clk 0:02:22.3]} 20... axb6 {[%clk 0:02:32.7]} 21. Nb3
{[%clk 0:01:48.2]} 21... Qg5 {[%clk 0:02:17]} 22. axb6 {[%clk 0:01:41.5]} 22...
Rc6 {[%clk 0:02:13.6]} 23. Qf2 {[%clk 0:01:38.7]} 23... Bh6 {[%clk 0:02:07.7]}
24. f4 {[%clk 0:01:36.8]} 24... Qh5 {[%clk 0:02:00.2]} 25. Bxf6 {[%clk
0:01:31.7]} 25... exf6 {[%clk 0:01:59]} 26. Nd5 {[%clk 0:01:29.8]} 26... Bg7
{[%clk 0:01:52.5]} 27. Ne7+ {[%clk 0:01:27.4]} 27... Kf8 {[%clk 0:01:51.8]} 28.
Nxc8 {[%clk 0:01:25.8]} 28... Rxc8 {[%clk 0:01:49.9]} 29. f5 {[%clk 0:01:23]}
29... Bc6 {[%clk 0:01:43.4]} 30. Rfe1 {[%clk 0:01:20]} 30... gxf5 {[%clk
0:01:30.2]} 31. exf5 {[%clk 0:01:16.7]} 31... Qg5 {[%clk 0:01:28.2]} 32. Nd4
{[%clk 0:01:13.3]} 32... Bd5 {[%clk 0:01:27]} 33. Nb5 {[%clk 0:01:12]} 33... Rd8
{[%clk 0:01:16.8]} 34. Rbd1 {[%clk 0:01:09.7]} 34... Bc6 {[%clk 0:01:11.4]} 35.
Nxd6 {[%clk 0:01:07.8]} 35... Bh6 {[%clk 0:01:10.4]} 36. Nxf7 {[%clk 0:01:05.7]}
36... Kxf7 {[%clk 0:00:58]} 37. Rxd8 {[%clk 0:01:01.9]} 37... Qg4 {[%clk
0:00:57.2]} 38. c3 {[%clk 0:00:59.8]} 38... Bf4 {[%clk 0:00:51.4]} 39. Qa2+
{[%clk 0:00:56.5]} 39... Kg7 {[%clk 0:00:46.7]} 40. Qg8+ {[%clk 0:00:53.7]}
40... Kh6 {[%clk 0:00:46.2]} 41. Qxg4 {[%clk 0:00:52.2]} 41... Bg5 {[%clk
0:00:44.9]} 42. Qh3+ {[%clk 0:00:50.3]} 42... Kg7 {[%clk 0:00:43.9]} 43. Re7#
{[%clk 0:00:47.4]} 1-0

[Event "Live Chess"]
[Site "Chess.com"]
[Date "2023.05.20"]
[Round "-"]
[White "EdenHazard8"]
[Black "Singapourfeuj"]
[Result "1-0"]
[WhiteElo "2074"]
[BlackElo "2202"]
[TimeControl "300"]
[EndTime "15:35:53 PDT"]
[Termination "EdenHazard8 won by resignation"]

1. e4 {[%clk 0:04:57.8]} 1... e6 {[%clk 0:04:59.1]} 2. d4 {[%clk 0:04:56.5]}
2... d5 {[%clk 0:04:58.2]} 3. Nd2 {[%clk 0:04:56.1]} 3... Be7 {[%clk 0:04:56.8]}
4. e5 {[%clk 0:04:49.2]} 4... c5 {[%clk 0:04:55.6]} 5. c3 {[%clk 0:04:47.8]}
5... Nc6 {[%clk 0:04:54.6]} 6. Ngf3 {[%clk 0:04:45.3]} 6... Qb6 {[%clk
0:04:53.2]} 7. Bd3 {[%clk 0:04:44.5]} 7... Bd7 {[%clk 0:04:52.2]} 8. O-O {[%clk
0:04:43]} 8... cxd4 {[%clk 0:04:50.2]} 9. cxd4 {[%clk 0:04:42.9]} 9... Nxd4
{[%clk 0:04:49.2]} 10. Nxd4 {[%clk 0:04:42.8]} 10... Qxd4 {[%clk 0:04:48]} 11.
Nf3 {[%clk 0:04:42.7]} 11... Qb6 {[%clk 0:04:46.6]} 12. Be3 {[%clk 0:04:42.6]}
12... Bc5 {[%clk 0:04:45.2]} 13. Bxc5 {[%clk 0:04:39.5]} 13... Qxc5 {[%clk
0:04:44.4]} 14. Rc1 {[%clk 0:04:38.9]} 14... Qb6 {[%clk 0:04:43.4]} 15. Ng5
{[%clk 0:04:37]} 15... Ne7 {[%clk 0:04:41.2]} 16. Qh5 {[%clk 0:04:35.6]} 16...
Ng6 {[%clk 0:04:38.8]} 17. g3 {[%clk 0:04:13.9]} 17... Nxe5 {[%clk 0:04:32.5]}
18. Bb1 {[%clk 0:04:11.8]} 18... g6 {[%clk 0:04:29.6]} 19. Qh6 {[%clk
0:04:09.1]} 19... Qd6 {[%clk 0:04:27]} 20. Qg7 {[%clk 0:04:06.6]} 20... Rf8
{[%clk 0:04:24.8]} 21. Nxh7 {[%clk 0:04:04.8]} 21... Nf3+ {[%clk 0:04:21.3]} 22.
Kg2 {[%clk 0:04:02.2]} 22... Nd2 {[%clk 0:04:19.9]} 23. Rfd1 {[%clk 0:03:59.6]}
23... Nxb1 {[%clk 0:04:18.5]} 24. Nxf8 {[%clk 0:03:58.1]} 24... Qxf8 {[%clk
0:04:15.7]} 25. Qxf8+ {[%clk 0:03:56.2]} 25... Kxf8 {[%clk 0:04:14.8]} 26. Rxb1
{[%clk 0:03:56.1]} 26... Bc6 {[%clk 0:04:13.9]} 27. Rbc1 {[%clk 0:03:53.9]}
27... a5 {[%clk 0:04:12.4]} 28. h4 {[%clk 0:03:50.2]} 28... Ke7 {[%clk
0:04:11.1]} 29. g4 {[%clk 0:03:49.2]} 29... a4 {[%clk 0:04:08.7]} 30. Kg3 {[%clk
0:03:46.3]} 30... a3 {[%clk 0:04:06.7]} 31. b3 {[%clk 0:03:45.2]} 31... e5
{[%clk 0:04:02.7]} 32. f4 {[%clk 0:03:43.3]} 32... e4 {[%clk 0:04:01.2]} 33. f5
{[%clk 0:03:41.5]} 33... gxf5 {[%clk 0:03:58.2]} 34. gxf5 {[%clk 0:03:41.4]}
34... Kf6 {[%clk 0:03:55.8]} 35. Kf4 {[%clk 0:03:39.8]} 35... Rh8 {[%clk
0:03:54.5]} 36. Rh1 {[%clk 0:03:37.4]} 36... d4 {[%clk 0:03:52.1]} 37. h5 {[%clk
0:03:35.9]} 37... e3 {[%clk 0:03:49]} 38. Rh2 {[%clk 0:03:35]} 38... Re8 {[%clk
0:03:41.7]} 39. h6 {[%clk 0:03:33.5]} 39... Re4+ {[%clk 0:03:40.5]} 40. Kg3
{[%clk 0:03:31.4]} 40... Re8 {[%clk 0:03:35.1]} 41. h7 {[%clk 0:03:29.6]} 41...
Rh8 {[%clk 0:03:33.7]} 42. Kf4 {[%clk 0:03:27.3]} 42... e2 {[%clk 0:03:31]} 43.
Rg1 {[%clk 0:03:25]} 43... d3 {[%clk 0:03:26.6]} 44. Ke3 {[%clk 0:03:23.5]}
44... Re8+ {[%clk 0:03:24.7]} 45. Kxd3 {[%clk 0:03:21.6]} 45... Be4+ {[%clk
0:03:23.4]} 46. Kd2 {[%clk 0:03:20.3]} 46... Bxf5 {[%clk 0:03:22.2]} 47. h8=Q+
{[%clk 0:03:18.3]} 47... Rxh8 {[%clk 0:03:20.8]} 48. Rxh8 {[%clk 0:03:18.2]} 1-0